[Event "December 12 Early 2023"]
[Site "https://www.chess.com"]
[Date "2023.12.12"]
[Round "2"]
[White "Gallegos Diaz, Carlos Alberto"]
[Black "Erzhanov, Arman"]
[Result "1-0"]
[Board "158"]
[TimeControl "180+1"]
[WhiteFideId "3900886"]
[BlackFideId "4138821"]
[WhiteElo "2349"]
[BlackElo "2523"]
[WhiteTeam "VEN"]
[BlackTeam "KAZ"]
[WhiteClock "0:00:36"]
[BlackClock "0:01:16"]

1. e4 {[%clk 0:03:00]}  d6 {[%clk 0:02:56]} 2. Nf3 {[%clk 0:03:00]}  Nf6 {[%clk 0:02:56]} 3. d3 {[%clk 0:02:59]}  e5 {[%clk 0:02:56]} 4. Be2 {[%clk 0:03:00]}  Nbd7 {[%clk 0:02:56]} 5. h3 {[%clk 0:03:00]}  Be7 {[%clk 0:02:56]} 6. O-O {[%clk 0:03:01]}  O-O {[%clk 0:02:56]} 7. Re1 {[%clk 0:03:02]}  c6 {[%clk 0:02:56]} 8. c3 {[%clk 0:03:02]}  b5 {[%clk 0:02:56]} 9. b4 {[%clk 0:03:02]}  a5 {[%clk 0:02:54]} 10. a3 {[%clk 0:03:02]}  axb4 {[%clk 0:02:54]} 11. cxb4 {[%clk 0:03:03]}  d5 {[%clk 0:02:51]} 12. Bb2 {[%clk 0:03:02]}  d4 {[%clk 0:02:46]} 13. Nbd2 {[%clk 0:02:47]}  Nb6 {[%clk 0:02:45]} 14. Nxe5 {[%clk 0:02:45]}  Na4 {[%clk 0:02:43]} 15. Nxc6 {[%clk 0:02:35]}  Nxb2 {[%clk 0:02:36]} 16. Qb3 {[%clk 0:02:33]}  Qc7 {[%clk 0:02:27]} 17. Nxe7+ {[%clk 0:02:32]}  Qxe7 {[%clk 0:02:28]} 18. Qxb2 {[%clk 0:02:33]}  Rd8 {[%clk 0:02:28]} 19. e5 {[%clk 0:02:13]}  Nd5 {[%clk 0:02:14]} 20. Bf3 {[%clk 0:02:06]}  Bb7 {[%clk 0:02:15]} 21. Qxd4 {[%clk 0:01:57]}  Qg5 {[%clk 0:02:04]} 22. Ne4 {[%clk 0:01:52]}  Qg6 {[%clk 0:02:03]} 23. Nd6 {[%clk 0:01:48]}  Rxd6 {[%clk 0:01:54]} 24. exd6 {[%clk 0:01:48]}  Qxd6 {[%clk 0:01:55]} 25. Re5 {[%clk 0:01:45]}  Rd8 {[%clk 0:01:54]} 26. Rae1 {[%clk 0:01:42]}  Kf8 {[%clk 0:01:53]} 27. Qc5 {[%clk 0:01:25]}  g6 {[%clk 0:01:42]} 28. Re8+ {[%clk 0:01:18]}  Kg7 {[%clk 0:01:40]} 29. Rxd8 {[%clk 0:01:03]}  Qxd8 {[%clk 0:01:38]} 30. Qd4+ {[%clk 0:01:01]}  f6 {[%clk 0:01:36]} 31. Rc1 {[%clk 0:00:55]}  Qa8 {[%clk 0:01:18]} 32. Rc5 {[%clk 0:00:45]}  Ne7 {[%clk 0:01:18]} 33. Rc7 {[%clk 0:00:41]}  Bxf3 {[%clk 0:01:18]} 34. Rxe7+ {[%clk 0:00:41]}  Kh6 {[%clk 0:01:18]} 35. Qf4+ {[%clk 0:00:38]}  g5 {[%clk 0:01:16]} 36. Qxf6+ {[%clk 0:00:36]} 1-0

[Event "December 12 Early 2023"]
[Site "https://www.chess.com"]
[Date "2023.12.12"]
[Round "2"]
[White "Recuero Guerra, Javier"]
[Black "Tikhonov, Viacheslav"]
[Result "1-0"]
[Board "160"]
[TimeControl "180+1"]
[WhiteFideId "2254085"]
[BlackFideId "44196407"]
[WhiteElo "2348"]
[BlackElo "2521"]
[WhiteTeam "ESP"]
[BlackTeam "RUS"]
[WhiteClock "0:00:27"]
[BlackClock "0:00:00"]

1. e4 {[%clk 0:03:00]}  c5 {[%clk 0:02:59]} 2. Nf3 {[%clk 0:02:59]}  g6 {[%clk 0:03:00]} 3. c4 {[%clk 0:02:58]}  Nc6 {[%clk 0:02:58]} 4. d4 {[%clk 0:02:58]}  cxd4 {[%clk 0:02:59]} 5. Nxd4 {[%clk 0:02:58]}  Nf6 {[%clk 0:03:00]} 6. Nc3 {[%clk 0:02:57]}  Nxd4 {[%clk 0:03:01]} 7. Qxd4 {[%clk 0:02:57]}  d6 {[%clk 0:03:01]} 8. Be2 {[%clk 0:02:56]}  Bg7 {[%clk 0:03:01]} 9. O-O {[%clk 0:02:55]}  O-O {[%clk 0:03:02]} 10. Qd1 {[%clk 0:02:54]}  Be6 {[%clk 0:03:03]} 11. Be3 {[%clk 0:02:53]}  Qa5 {[%clk 0:02:18]} 12. Rc1 {[%clk 0:02:50]}  Rfc8 {[%clk 0:02:17]} 13. b3 {[%clk 0:02:50]}  Qd8 {[%clk 0:02:12]} 14. Qd2 {[%clk 0:02:44]}  a6 {[%clk 0:02:07]} 15. f3 {[%clk 0:02:30]}  h5 {[%clk 0:01:45]} 16. Rfd1 {[%clk 0:02:27]}  Kh7 {[%clk 0:01:44]} 17. Nd5 {[%clk 0:02:21]}  Nxd5 {[%clk 0:01:14]} 18. cxd5 {[%clk 0:02:16]}  Bd7 {[%clk 0:01:15]} 19. a4 {[%clk 0:02:13]}  a5 {[%clk 0:01:11]} 20. Bd4 {[%clk 0:02:11]}  Bh6 {[%clk 0:01:09]} 21. Be3 {[%clk 0:02:10]}  Bg7 {[%clk 0:00:43]} 22. Rxc8 {[%clk 0:02:04]}  Rxc8 {[%clk 0:00:42]} 23. Rc1 {[%clk 0:02:05]}  e6 {[%clk 0:00:33]} 24. Rxc8 {[%clk 0:01:50]}  Bxc8 {[%clk 0:00:34]} 25. Bc4 {[%clk 0:01:50]}  e5 {[%clk 0:00:21]} 26. Bd3 {[%clk 0:01:41]}  f5 {[%clk 0:00:21]} 27. exf5 {[%clk 0:01:36]}  gxf5 {[%clk 0:00:22]} 28. Qc2 {[%clk 0:01:36]}  Qf8 {[%clk 0:00:19]} 29. Qc7 {[%clk 0:01:23]}  Kh8 {[%clk 0:00:14]} 30. Bg5 {[%clk 0:01:17]}  e4 {[%clk 0:00:11]} 31. Be2 {[%clk 0:00:53]}  Bd4+ {[%clk 0:00:10]} 32. Kf1 {[%clk 0:00:50]}  f4 {[%clk 0:00:06]} 33. fxe4 {[%clk 0:00:44]}  Bg4 {[%clk 0:00:06]} 34. Qd8 {[%clk 0:00:39]}  Qxd8 {[%clk 0:00:03]} 35. Bxd8 {[%clk 0:00:40]}  Bd7 {[%clk 0:00:01]} 36. Bxa5 {[%clk 0:00:34]}  h4 {[%clk 0:00:01]} 37. h3 {[%clk 0:00:34]}  Kg7 {[%clk 0:00:01]} 38. Be1 {[%clk 0:00:35]}  f3 {[%clk 0:00:01]} 39. Bxf3 {[%clk 0:00:33]}  b5 {[%clk 0:00:01]} 40. a5 {[%clk 0:00:30]}  Bb2 {[%clk 0:00:01]} 41. a6 {[%clk 0:00:28]}  Bd4 {[%clk 0:00:00]} 42. Bf2 {[%clk 0:00:27]} 1-0

[Event "December 12 Early 2023"]
[Site "https://www.chess.com"]
[Date "2023.12.12"]
[Round "2"]
[White "Skurikhin, Dmitrij"]
[Black "Goltseva, Ekaterina"]
[Result "0-1"]
[Board "161"]
[TimeControl "180+1"]
[WhiteFideId "4161297"]
[BlackFideId "24173770"]
[WhiteElo "2345"]
[BlackElo "2519"]
[WhiteTeam "RUS"]
[BlackTeam "RUS"]
[WhiteClock "0:00:00"]
[BlackClock "0:02:18"]

1. d4 {[%clk 0:03:00]}  e6 {[%clk 0:02:55]} 2. Nf3 {[%clk 0:02:57]}  Nf6 {[%clk 0:02:48]} 3. c4 {[%clk 0:02:58]}  b6 {[%clk 0:02:44]} 4. a3 {[%clk 0:02:43]}  Ba6 {[%clk 0:02:37]} 5. Qc2 {[%clk 0:02:42]}  Bb7 {[%clk 0:02:36]} 6. Nc3 {[%clk 0:02:41]}  c5 {[%clk 0:02:35]} 7. d5 {[%clk 0:02:40]}  exd5 {[%clk 0:02:27]} 8. cxd5 {[%clk 0:02:37]}  Nxd5 {[%clk 0:02:27]} 9. Nxd5 {[%clk 0:02:36]}  Bxd5 {[%clk 0:02:27]} 10. e4 {[%clk 0:02:37]}  Be6 {[%clk 0:02:21]} 11. Bd3 {[%clk 0:02:36]}  Be7 {[%clk 0:02:18]} 12. O-O {[%clk 0:02:35]}  Nc6 {[%clk 0:02:18]} 13. Qb3 {[%clk 0:00:00]}  Bxb3 {[%clk 0:02:18]} 0-1

[Event "December 12 Early 2023"]
[Site "https://www.chess.com"]
[Date "2023.12.12"]
[Round "2"]
[White "Buscar, Michael"]
[Black "Gavrilov, Maxim"]
[Result "0-1"]
[Board "163"]
[TimeControl "180+1"]
[WhiteFideId "2603616"]
[BlackFideId "24271454"]
[WhiteElo "2341"]
[BlackElo "2517"]
[WhiteTeam "CAN"]
[BlackTeam "RUS"]
[WhiteClock "0:00:00"]
[BlackClock "0:00:04"]

1. Nf3 {[%clk 0:02:47]}  d5 {[%clk 0:02:58]} 2. d4 {[%clk 0:02:44]}  Nf6 {[%clk 0:02:56]} 3. c4 {[%clk 0:02:43]}  c6 {[%clk 0:02:55]} 4. g3 {[%clk 0:02:43]}  Bf5 {[%clk 0:02:53]} 5. Bg2 {[%clk 0:02:40]}  e6 {[%clk 0:02:52]} 6. b3 {[%clk 0:02:40]}  Nbd7 {[%clk 0:02:51]} 7. O-O {[%clk 0:02:40]}  h6 {[%clk 0:02:51]} 8. Bb2 {[%clk 0:02:35]}  Be7 {[%clk 0:02:50]} 9. Nbd2 {[%clk 0:02:22]}  O-O {[%clk 0:02:47]} 10. Ne5 {[%clk 0:02:22]}  Qc7 {[%clk 0:02:38]} 11. Nxd7 {[%clk 0:02:17]}  Nxd7 {[%clk 0:02:33]} 12. e4 {[%clk 0:02:16]}  dxe4 {[%clk 0:02:32]} 13. Bxe4 {[%clk 0:02:10]}  Bxe4 {[%clk 0:02:32]} 14. Nxe4 {[%clk 0:02:10]}  Rad8 {[%clk 0:02:31]} 15. Qe2 {[%clk 0:02:02]}  Rfe8 {[%clk 0:02:29]} 16. Rad1 {[%clk 0:02:01]}  a5 {[%clk 0:02:22]} 17. Qf3 {[%clk 0:01:33]}  a4 {[%clk 0:02:04]} 18. Rd3 {[%clk 0:01:31]}  Qa5 {[%clk 0:01:58]} 19. Rfd1 {[%clk 0:01:28]}  Nb6 {[%clk 0:01:42]} 20. Kg2 {[%clk 0:01:18]}  f5 {[%clk 0:01:32]} 21. Nc3 {[%clk 0:01:08]}  Bf6 {[%clk 0:01:24]} 22. Ne2 {[%clk 0:01:06]}  axb3 {[%clk 0:01:17]} 23. axb3 {[%clk 0:01:05]}  Qb4 {[%clk 0:01:16]} 24. Bc3 {[%clk 0:00:40]}  Qa3 {[%clk 0:00:20]} 25. Ra1 {[%clk 0:00:32]}  Qxb3 {[%clk 0:00:20]} 26. Ba5 {[%clk 0:00:31]}  Qb2 {[%clk 0:00:20]} 27. Raa3 {[%clk 0:00:19]}  Nxc4 {[%clk 0:00:18]} 28. Rab3 {[%clk 0:00:17]}  Qc2 {[%clk 0:00:15]} 29. Bxd8 {[%clk 0:00:17]}  Rxd8 {[%clk 0:00:15]} 30. Rxb7 {[%clk 0:00:16]}  Ne5 {[%clk 0:00:11]} 31. Rc3 {[%clk 0:00:11]}  Nxf3 {[%clk 0:00:06]} 32. Kxf3 {[%clk 0:00:03]}  Qd1 {[%clk 0:00:04]} 33. Rxc6 {[%clk 0:00:00]}  Rxd4 {[%clk 0:00:04]} 0-1

[Event "December 12 Early 2023"]
[Site "https://www.chess.com"]
[Date "2023.12.12"]
[Round "2"]
[White "Play, Gilles"]
[Black "Harriott, Tyrell"]
[Result "1-0"]
[Board "164"]
[TimeControl "180+1"]
[WhiteFideId "45130892"]
[BlackFideId "2086484"]
[WhiteElo "2517"]
[BlackElo "2341"]
[WhiteTeam "FRA"]
[BlackTeam "USA"]
[WhiteClock "0:01:42"]
[BlackClock "0:00:13"]

1. e4 {[%clk 0:03:00]}  d5 {[%clk 0:02:56]} 2. exd5 {[%clk 0:03:00]}  Nf6 {[%clk 0:02:55]} 3. d4 {[%clk 0:02:59]}  Qxd5 {[%clk 0:02:54]} 4. Nc3 {[%clk 0:02:58]}  Qa5 {[%clk 0:02:47]} 5. Nf3 {[%clk 0:02:57]}  Ne4 {[%clk 0:02:45]} 6. Bd3 {[%clk 0:02:52]}  Nxc3 {[%clk 0:02:38]} 7. bxc3 {[%clk 0:02:51]}  Bg4 {[%clk 0:02:34]} 8. O-O {[%clk 0:02:47]}  e6 {[%clk 0:02:31]} 9. Rb1 {[%clk 0:02:47]}  b6 {[%clk 0:02:11]} 10. h3 {[%clk 0:02:46]}  Bh5 {[%clk 0:02:08]} 11. Rb5 {[%clk 0:02:45]}  Qxc3 {[%clk 0:01:46]} 12. Rxh5 {[%clk 0:02:44]}  c6 {[%clk 0:01:43]} 13. Re1 {[%clk 0:02:36]}  Be7 {[%clk 0:01:42]} 14. Bd2 {[%clk 0:02:31]}  Qa3 {[%clk 0:01:39]} 15. Ne5 {[%clk 0:02:29]}  g6 {[%clk 0:01:36]} 16. Bxg6 {[%clk 0:02:14]}  fxg6 {[%clk 0:01:32]} 17. Nxg6 {[%clk 0:02:14]}  Rg8 {[%clk 0:01:26]} 18. Nxe7 {[%clk 0:02:07]}  Qxe7 {[%clk 0:01:25]} 19. Rhe5 {[%clk 0:02:07]}  Qg7 {[%clk 0:01:19]} 20. Rxe6+ {[%clk 0:02:06]}  Kd7 {[%clk 0:01:19]} 21. Qf3 {[%clk 0:02:03]}  Kc8 {[%clk 0:01:14]} 22. Rxc6+ {[%clk 0:01:59]}  Kd8 {[%clk 0:00:44]} 23. Rd6+ {[%clk 0:01:55]}  Kc7 {[%clk 0:00:36]} 24. Bf4 {[%clk 0:01:54]}  Kc8 {[%clk 0:00:26]} 25. Qxa8 {[%clk 0:01:49]}  Qb7 {[%clk 0:00:19]} 26. Rc6+ {[%clk 0:01:42]}  Qxc6 {[%clk 0:00:17]} 27. Qxb8+ {[%clk 0:01:43]}  Kd7 {[%clk 0:00:16]} 28. Qxg8 {[%clk 0:01:43]}  Qf6 {[%clk 0:00:13]} 29. Qe8# {[%clk 0:01:42]} 1-0

[Event "December 12 Early 2023"]
[Site "https://www.chess.com"]
[Date "2023.12.12"]
[Round "2"]
[White "Evdokimov, Alexey"]
[Black "Baziuk, Vladyslav"]
[Result "1/2-1/2"]
[Board "165"]
[TimeControl "180+1"]
[WhiteFideId "24162450"]
[BlackFideId "34107940"]
[WhiteElo "2340"]
[BlackElo "2516"]
[WhiteTeam "RUS"]
[BlackTeam "UKR"]
[WhiteClock "0:00:39"]
[BlackClock "0:00:05"]

1. Nf3 {[%clk 0:02:59]}  c5 {[%clk 0:02:59]} 2. c4 {[%clk 0:02:59]}  Nc6 {[%clk 0:02:59]} 3. e3 {[%clk 0:03:00]}  Nf6 {[%clk 0:02:58]} 4. Nc3 {[%clk 0:03:00]}  g6 {[%clk 0:02:58]} 5. d4 {[%clk 0:03:00]}  cxd4 {[%clk 0:02:58]} 6. exd4 {[%clk 0:03:01]}  d5 {[%clk 0:02:59]} 7. cxd5 {[%clk 0:02:58]}  Nxd5 {[%clk 0:03:00]} 8. Bc4 {[%clk 0:02:59]}  Nxc3 {[%clk 0:03:00]} 9. bxc3 {[%clk 0:02:59]}  Bg7 {[%clk 0:02:57]} 10. O-O {[%clk 0:02:58]}  O-O {[%clk 0:02:58]} 11. Re1 {[%clk 0:02:51]}  Bg4 {[%clk 0:02:43]} 12. h3 {[%clk 0:02:51]}  Bxf3 {[%clk 0:02:40]} 13. Qxf3 {[%clk 0:02:52]}  Nxd4 {[%clk 0:02:40]} 14. cxd4 {[%clk 0:02:49]}  Qxd4 {[%clk 0:02:40]} 15. Ba3 {[%clk 0:02:28]}  Qxc4 {[%clk 0:02:37]} 16. Rac1 {[%clk 0:02:19]}  Qxa2 {[%clk 0:02:35]} 17. Rxe7 {[%clk 0:02:17]}  Rfe8 {[%clk 0:01:59]} 18. Rxb7 {[%clk 0:02:13]}  a5 {[%clk 0:01:52]} 19. g3 {[%clk 0:02:02]}  Rac8 {[%clk 0:01:36]} 20. Rbc7 {[%clk 0:01:45]}  Rxc7 {[%clk 0:01:32]} 21. Rxc7 {[%clk 0:01:46]}  a4 {[%clk 0:01:17]} 22. Ra7 {[%clk 0:01:39]}  Qb3 {[%clk 0:00:20]} 23. Qxb3 {[%clk 0:01:38]}  axb3 {[%clk 0:00:21]} 24. Rb7 {[%clk 0:01:39]}  Re1+ {[%clk 0:00:18]} 25. Kg2 {[%clk 0:01:39]}  Re8 {[%clk 0:00:16]} 26. Rxb3 {[%clk 0:01:38]}  h5 {[%clk 0:00:17]} 27. Bc5 {[%clk 0:01:37]}  Be5 {[%clk 0:00:16]} 28. Be3 {[%clk 0:01:34]}  Kg7 {[%clk 0:00:16]} 29. g4 {[%clk 0:01:35]}  hxg4 {[%clk 0:00:16]} 30. hxg4 {[%clk 0:01:35]}  Bf6 {[%clk 0:00:13]} 31. Kf3 {[%clk 0:01:35]}  g5 {[%clk 0:00:12]} 32. Rb5 {[%clk 0:01:34]}  Kg6 {[%clk 0:00:12]} 33. Rb6 {[%clk 0:01:33]}  Kg7 {[%clk 0:00:12]} 34. Bd2 {[%clk 0:01:29]}  Rd8 {[%clk 0:00:09]} 35. Be3 {[%clk 0:01:21]}  Kg6 {[%clk 0:00:09]} 36. Ke4 {[%clk 0:01:19]}  Re8+ {[%clk 0:00:09]} 37. Kd3 {[%clk 0:01:19]}  Rd8+ {[%clk 0:00:08]} 38. Kc4 {[%clk 0:01:18]}  Rc8+ {[%clk 0:00:08]} 39. Kd5 {[%clk 0:01:17]}  Rd8+ {[%clk 0:00:08]} 40. Kc6 {[%clk 0:01:12]}  Kg7 {[%clk 0:00:09]} 41. Kc7 {[%clk 0:01:11]}  Rd3 {[%clk 0:00:08]} 42. Ra6 {[%clk 0:01:05]}  Rd1 {[%clk 0:00:06]} 43. Ra5 {[%clk 0:01:03]}  Kg6 {[%clk 0:00:05]} 44. Kc6 {[%clk 0:01:02]}  Kg7 {[%clk 0:00:04]} 45. Bxg5 {[%clk 0:00:58]}  Bxg5 {[%clk 0:00:04]} 46. Rxg5+ {[%clk 0:00:59]}  Kf6 {[%clk 0:00:05]} 47. Rf5+ {[%clk 0:00:59]}  Kg6 {[%clk 0:00:06]} 48. Kc5 {[%clk 0:00:59]}  f6 {[%clk 0:00:06]} 49. f3 {[%clk 0:00:56]}  Rd2 {[%clk 0:00:06]} 50. Rd5 {[%clk 0:00:53]}  Rf2 {[%clk 0:00:05]} 51. Rd3 {[%clk 0:00:53]}  Kg5 {[%clk 0:00:06]} 52. Kd5 {[%clk 0:00:51]}  Kf4 {[%clk 0:00:06]} 53. Ke6 {[%clk 0:00:51]}  Rxf3 {[%clk 0:00:05]} 54. Rxf3+ {[%clk 0:00:37]}  Kxf3 {[%clk 0:00:06]} 55. Kf5 {[%clk 0:00:38]}  Kg3 {[%clk 0:00:06]} 56. g5 {[%clk 0:00:38]}  fxg5 {[%clk 0:00:05]} 57. Kxg5 {[%clk 0:00:39]} 1/2-1/2

[Event "December 12 Early 2023"]
[Site "https://www.chess.com"]
[Date "2023.12.12"]
[Round "2"]
[White "Filippova, Margarita"]
[Black "Pham, Le Thao Nguyen"]
[Result "0-1"]
[Board "166"]
[TimeControl "180+1"]
[WhiteFideId "34199680"]
[BlackFideId "12401226"]
[WhiteElo "2335"]
[BlackElo "2514"]
[WhiteTeam "RUS"]
[BlackTeam "VIE"]
[WhiteClock "0:00:00"]
[BlackClock "0:00:10"]

1. e4 {[%clk 0:01:22]}  c5 {[%clk 0:02:57]} 2. Nf3 {[%clk 0:01:21]}  e6 {[%clk 0:02:57]} 3. c3 {[%clk 0:01:21]}  d5 {[%clk 0:02:54]} 4. e5 {[%clk 0:01:19]}  Nc6 {[%clk 0:02:50]} 5. d4 {[%clk 0:01:19]}  cxd4 {[%clk 0:02:49]} 6. cxd4 {[%clk 0:01:20]}  Bd7 {[%clk 0:02:44]} 7. Nc3 {[%clk 0:01:13]}  a6 {[%clk 0:02:40]} 8. Be2 {[%clk 0:01:05]}  Nge7 {[%clk 0:02:39]} 9. O-O {[%clk 0:01:06]}  Nf5 {[%clk 0:02:38]} 10. a3 {[%clk 0:01:03]}  h5 {[%clk 0:02:04]} 11. b4 {[%clk 0:00:58]}  Be7 {[%clk 0:02:03]} 12. Bb2 {[%clk 0:00:57]}  g5 {[%clk 0:01:42]} 13. Na4 {[%clk 0:00:51]}  g4 {[%clk 0:01:39]} 14. Ne1 {[%clk 0:00:51]}  Ncxd4 {[%clk 0:01:34]} 15. Bxd4 {[%clk 0:00:50]}  Nxd4 {[%clk 0:01:35]} 16. Qxd4 {[%clk 0:00:51]}  Bxa4 {[%clk 0:01:34]} 17. Rc1 {[%clk 0:00:50]}  Qd7 {[%clk 0:00:50]} 18. f4 {[%clk 0:00:46]}  Bb5 {[%clk 0:00:23]} 19. Bxb5 {[%clk 0:00:45]}  axb5 {[%clk 0:00:23]} 20. Rc3 {[%clk 0:00:44]}  Rc8 {[%clk 0:00:20]} 21. Rf2 {[%clk 0:00:44]}  Rc4 {[%clk 0:00:20]} 22. Qd3 {[%clk 0:00:42]}  Qc6 {[%clk 0:00:19]} 23. Rfc2 {[%clk 0:00:43]}  O-O {[%clk 0:00:16]} 24. g3 {[%clk 0:00:43]}  Rc8 {[%clk 0:00:16]} 25. Rxc4 {[%clk 0:00:43]}  dxc4 {[%clk 0:00:14]} 26. Qe3 {[%clk 0:00:38]}  Rd8 {[%clk 0:00:15]} 27. Rd2 {[%clk 0:00:33]}  Rxd2 {[%clk 0:00:12]} 28. Qxd2 {[%clk 0:00:33]}  Qd5 {[%clk 0:00:12]} 29. Qxd5 {[%clk 0:00:28]}  exd5 {[%clk 0:00:13]} 30. Nc2 {[%clk 0:00:29]}  Bd8 {[%clk 0:00:13]} 31. Kf2 {[%clk 0:00:28]}  Bb6+ {[%clk 0:00:14]} 32. Ke2 {[%clk 0:00:27]}  d4 {[%clk 0:00:15]} 33. Kd2 {[%clk 0:00:28]}  f6 {[%clk 0:00:10]} 34. exf6 {[%clk 0:00:21]}  Kf7 {[%clk 0:00:10]} 35. Ne1 {[%clk 0:00:18]}  Kxf6 {[%clk 0:00:10]} 36. Ng2 {[%clk 0:00:18]}  Kf5 {[%clk 0:00:09]} 37. Nh4+ {[%clk 0:00:18]}  Ke4 {[%clk 0:00:09]} 38. Ng6 {[%clk 0:00:18]}  d3 {[%clk 0:00:09]} 39. Ne5 {[%clk 0:00:18]}  Be3+ {[%clk 0:00:09]} 40. Kc3 {[%clk 0:00:18]}  Bd4+ {[%clk 0:00:09]} 41. Kd2 {[%clk 0:00:18]}  Bxe5 {[%clk 0:00:09]} 42. fxe5 {[%clk 0:00:19]}  Kxe5 {[%clk 0:00:10]} 43. Ke3 {[%clk 0:00:20]}  Kd5 {[%clk 0:00:10]} 44. Kd2 {[%clk 0:00:00]}  Kd4 {[%clk 0:00:10]} 0-1

[Event "December 12 Early 2023"]
[Site "https://www.chess.com"]
[Date "2023.12.12"]
[Round "2"]
[White "Rangel, Daniel"]
[Black "Zeneli, Klendi"]
[Result "0-1"]
[Board "167"]
[TimeControl "180+1"]
[WhiteFideId "2124475"]
[BlackFideId "4706609"]
[WhiteElo "2514"]
[BlackElo "2332"]
[WhiteTeam "BRA"]
[BlackTeam "ALB"]
[WhiteClock "0:00:00"]
[BlackClock "0:00:17"]

1. d4 {[%clk 0:03:00]}  d5 {[%clk 0:03:00]} 2. c4 {[%clk 0:03:01]}  c6 {[%clk 0:03:00]} 3. Nc3 {[%clk 0:03:01]}  Nf6 {[%clk 0:03:00]} 4. Bg5 {[%clk 0:03:00]}  Ne4 {[%clk 0:02:58]} 5. Bd2 {[%clk 0:02:57]}  Nxd2 {[%clk 0:02:49]} 6. Qxd2 {[%clk 0:02:55]}  dxc4 {[%clk 0:02:49]} 7. e3 {[%clk 0:02:50]}  b5 {[%clk 0:02:49]} 8. Nf3 {[%clk 0:02:48]}  g6 {[%clk 0:02:48]} 9. a4 {[%clk 0:02:46]}  a6 {[%clk 0:02:34]} 10. g3 {[%clk 0:02:45]}  Bb7 {[%clk 0:02:34]} 11. Bg2 {[%clk 0:02:45]}  Bg7 {[%clk 0:02:32]} 12. O-O {[%clk 0:02:45]}  O-O {[%clk 0:02:32]} 13. Ne1 {[%clk 0:02:40]}  Qb6 {[%clk 0:02:31]} 14. Nc2 {[%clk 0:02:31]}  Nd7 {[%clk 0:02:28]} 15. h4 {[%clk 0:02:24]}  c5 {[%clk 0:02:24]} 16. Bxb7 {[%clk 0:02:15]}  Qxb7 {[%clk 0:02:23]} 17. d5 {[%clk 0:02:08]}  Rfd8 {[%clk 0:02:20]} 18. e4 {[%clk 0:02:07]}  Nf6 {[%clk 0:02:18]} 19. Rfe1 {[%clk 0:02:03]}  Ng4 {[%clk 0:02:10]} 20. Rab1 {[%clk 0:01:55]}  Ne5 {[%clk 0:02:10]} 21. Kg2 {[%clk 0:01:48]}  Nd3 {[%clk 0:02:09]} 22. Re2 {[%clk 0:01:42]}  h5 {[%clk 0:01:45]} 23. Ne1 {[%clk 0:01:39]}  Nxe1+ {[%clk 0:01:41]} 24. Rbxe1 {[%clk 0:01:36]}  b4 {[%clk 0:01:38]} 25. Nd1 {[%clk 0:01:36]}  Qd7 {[%clk 0:01:37]} 26. Qc2 {[%clk 0:01:29]}  c3 {[%clk 0:01:25]} 27. bxc3 {[%clk 0:01:27]}  Rdb8 {[%clk 0:01:25]} 28. cxb4 {[%clk 0:01:14]}  cxb4 {[%clk 0:01:25]} 29. Qb3 {[%clk 0:01:07]}  a5 {[%clk 0:01:22]} 30. Ne3 {[%clk 0:01:07]}  Rc8 {[%clk 0:01:21]} 31. Nc4 {[%clk 0:00:54]}  Qc7 {[%clk 0:00:53]} 32. Rc1 {[%clk 0:00:45]}  Bc3 {[%clk 0:00:52]} 33. Ne3 {[%clk 0:00:45]}  Qe5 {[%clk 0:00:51]} 34. Qb1 {[%clk 0:00:38]}  Rab8 {[%clk 0:00:48]} 35. Qd3 {[%clk 0:00:27]}  b3 {[%clk 0:00:43]} 36. Nc4 {[%clk 0:00:23]}  Qd4 {[%clk 0:00:41]} 37. Qxc3 {[%clk 0:00:14]}  b2 {[%clk 0:00:20]} 38. Qxd4 {[%clk 0:00:10]}  bxc1=Q {[%clk 0:00:20]} 39. Nxa5 {[%clk 0:00:09]}  Qc5 {[%clk 0:00:18]} 40. Qxc5 {[%clk 0:00:07]}  Rxc5 {[%clk 0:00:19]} 41. Nc6 {[%clk 0:00:08]}  Ra8 {[%clk 0:00:19]} 42. a5 {[%clk 0:00:06]}  e6 {[%clk 0:00:20]} 43. Rd2 {[%clk 0:00:05]}  exd5 {[%clk 0:00:19]} 44. exd5 {[%clk 0:00:06]}  Kf8 {[%clk 0:00:19]} 45. Kf3 {[%clk 0:00:07]}  Ke8 {[%clk 0:00:18]} 46. Ke4 {[%clk 0:00:07]}  Kd7 {[%clk 0:00:17]} 47. Rb2 {[%clk 0:00:07]}  Kd6 {[%clk 0:00:16]} 48. Kd4 {[%clk 0:00:06]}  Rxd5+ {[%clk 0:00:16]} 49. Kc4 {[%clk 0:00:07]}  Kxc6 {[%clk 0:00:16]} 50. Rb6+ {[%clk 0:00:07]}  Kc7 {[%clk 0:00:17]} 51. Kxd5 {[%clk 0:00:00]}  Rxa5+ {[%clk 0:00:17]} 0-1